[Event "2nd Cambridge Open 2024"]
[Site "Cambridge"]
[Date "2024.02.23"]
[Round "7.11"]
[White "Rida, Ruqayyah"]
[Black "Wells, Peter K"]
[Result "1/2-1/2"]
[ECO "C55"]
[WhiteElo "1743"]
[BlackElo "2341"]
[Annotator "TA"]
[PlyCount "52"]
[EventDate "2024.02.18"]
[EventType "swiss"]
[EventCountry "ENG"]
[SourceTitle "playchess.com"]
[Source "ChessBase"]
[SourceQuality "1"]
[TimeControl "5400+30"]

{[%evp 13,52,24,33,28,38,37,45,20,45,4,46,41,60,69,44,45,45,7,26,27,26,21,32,-7,0,-15,-29,-14,0,0,0,0,0,0,0,0,0,0,0,0,10]} 1. e4 {[%emt 0:00:03]} e5 {[%emt 0:04:40]} 2. Nf3 {[%emt 0:00:12]} Nc6 {[%emt 0:00:08]} 3. Bc4 {[%emt 0:00:13]} Nf6 {[%emt 0:00:17]} 4. d3 {[%emt 0:00:12]} Be7 {[%emt 0:00:55]} 5. O-O {[%emt 0:00:39]} O-O {[%emt 0:00:13]} 6. Re1 {[%emt 0:00:53]} d6 {[%emt 0:00:16]} 7. a4 {[%emt 0:01:43]} Na5 {[%emt 0:00:58]} 8. Ba2 {[%emt 0:01:36]} c5 {[%emt 0:00:09]} 9. c3 {[%emt 0:02:57]} Nc6 {[%emt 0:02:04]} 10. h3 {[%emt 0:01:41] White is slightly better.} h6 {[%emt 0:08:32]} 11. d4 {[%emt 0:04:10]} cxd4 {[%emt 0:07:10]} 12. cxd4 {[%emt 0:00:44]} exd4 {[%emt 0:12:53]} 13. Nxd4 {[%emt 0:02:07]} d5 {[%emt 0:09:03]} 14. exd5 {[%emt 0:12:37]} Nb4 {[%emt 0:00:23][%cal Ob4a2]} 15. Bc4 {[%emt 0:08:38]} Nfxd5 {[%emt 0:07:57]} (15... Bc5 $5) 16. Nc3 {[%emt 0:05:08] [#] Hoping for Nxd5.} Bf6 {[%emt 0:02:20]} 17. Qb3 {[%emt 0:08:12] Rd1 is the strong threat.} Nb6 {[%emt 0:06:30]} 18. Nf3 {[%emt 0:09:50]} (18. Ndb5 $5 Nxc4 19. Qxb4 $16) 18... a5 {[%emt 0:03:43]} 19. Be3 {[%emt 0:11:52] Threatens to win with Rad1.} Nxc4 {[%emt 0:01:02]} 20. Qxc4 {[%emt 0:00:11]} Qd3 {[%emt 0:12:02] The position is equal.} 21. Qxd3 {[%emt 0:04:14]} Nxd3 {[%emt 0:00:02]} 22. Re2 {[%emt 0:00:18]} Bxc3 {[%emt 0:07:53]} 23. bxc3 {[%emt 0:00:22]} Re8 {[%emt 0:00:21]} 24. Rd2 {[%emt 0:01:40]} Bf5 {[%emt 0:01:50]} 25. Nd4 {[%emt 0:01:20]} Bg6 {[%emt 0:01:34]} 26. Nb5 {[%emt 0:02:10]} Rec8 {[%emt 0:02:25] Against Nc7.   Weighted Error Value: White=0.11 (very precise) /Black=0.08 (flawless) .  Inaccurate:     	White=3     	Black=1      OK:         	White=7     	Black=10} 1/2-1/2

[Event "2nd Cambridge Open 2024"]
[Site "Cambridge"]
[Date "2024.02.23"]
[Round "7.12"]
[White "York-Weaving, Richard"]
[Black "Pereslavtsev, Alexandr"]
[Result "1-0"]
[ECO "B33"]
[WhiteElo "2343"]
[BlackElo "1696"]
[Annotator "TA"]
[PlyCount "57"]
[EventDate "2024.02.18"]
[EventType "swiss"]
[EventCountry "ENG"]
[SourceTitle "playchess.com"]
[Source "ChessBase"]
[SourceQuality "1"]
[TimeControl "5400+30"]

{[%evp 16,56,44,30,35,22,45,11,30,12,64,31,31,38,568,571,572,570,1140,1133,1150,1104,1906,1736,2406,2381,2337,2256,2068,2323,2293,2241,29986,29987,29995,29996,29996,29997,29997,29998,29998,29999,29999]} 1. e4 {[%emt 0:00:02]} c5 {[%emt 0:00:10]} 2. Nf3 {[%emt 0:00:05]} e6 {[%emt 0:00:06]} 3. d4 {[%emt 0:00:12]} cxd4 {[%emt 0:00:09]} 4. Nxd4 {[%emt 0:00:06]} Qb6 {[%emt 0:00:27]} 5. Nb3 {[%emt 0:01:55]} Qc7 {[%emt 0:00:05]} 6. Nc3 {[%emt 0:01:19]} a6 {[%emt 0:00:15]} 7. Bd3 {[%emt 0:01:08]} Nf6 {[%emt 0:01:21]} 8. O-O {[%emt 0:01:39]} Nc6 {[%emt 0:02:01]} 9. f4 {[%emt 0:01:54]} d6 {[%emt 0:01:53]} 10. Qf3 {[%emt 0:00:33]} b5 {[%emt 0:14:22]} 11. Bd2 {[%emt 0:01:53]} Bb7 {[%emt 0:00:28] The position is equal.} 12. Rae1 {[%emt 0:05:46]} Rd8 {[%emt 0:05:59]} (12... g6 $11) 13. Kh1 {[%emt 0:03:06]} Be7 {[%emt 0:16:41]} 14. Qg3 {[%emt 0:03:58]} e5 $2 {[%emt 0:10:19][%mdl 8192] Loses the game.} (14... O-O $14) 15. Nd5 $18 {[%emt 0:04:36]} ({Weaker is} 15. Qxg7 Rg8 16. Nd5 Rxg7 $18) 15... Nxd5 {[%emt 0:04:52]} 16. exd5 {[%emt 0:00:08][%cal Og3g7] [#] Strongly threatening Qxg7!} Nd4 {[%emt 0:02:17]} 17. Nxd4 {[%emt 0:03:30]} exd4 {[%emt 0:00:08]} 18. Qxg7 {[%emt 0:00:39]} Rf8 {[%emt 0:00:29]} 19. f5 {[%emt 0:04:31] f6 would kill now.} f6 {[%emt 0:00:30]} 20. Bh6 {[%emt 0:01:42]} Rf7 {[%emt 0:01:04]} 21. Qg8+ {[%emt 0:00:13]} Kd7 {[%emt 0:00:11][%cal Be8d7,Bd7c6,Bc6b6][%mdl 32]} 22. Qxf7 {[%emt 0:00:16]} Re8 {[%emt 0:00:09]} 23. Re4 {[%emt 0:03:07]} Qc5 {[%emt 0:00:32]} 24. Rfe1 {[%emt 0:01:00] White mates.} Bxd5 {[%emt 0:00:10]} 25. Rxe7+ {[%emt 0:00:17]} Rxe7 {[%emt 0:00:04]} 26. Rxe7+ {[%emt 0:00:22]} Kc6 {[%emt 0:00:12]} 27. Qe8+ {[%emt 0:00:23]} Kb6 {[%emt 0:00:06]} 28. Qd8+ {[%emt 0:00:10]} Kc6 {[%emt 0:00:03]} 29. Qc7# {[%emt 0:00:40] Weighted Error Value: White=0.10 (very precise) /Black=1.11.  Loses game:     	---       	Black=1      Mistake:       	---       	Black=1      Inaccurate:     	White=2     	Black=1      OK:         	---       	Black=3      Best:        	White=1     	---} 1-0

[Event "2nd Cambridge Open 2024"]
[Site "Cambridge"]
[Date "2024.02.23"]
[Round "7.13"]
[White "Payne, Matthew J"]
[Black "Pert, Richard G"]
[Result "0-1"]
[ECO "B23"]
[WhiteElo "2091"]
[BlackElo "2411"]
[Annotator "TA"]
[PlyCount "58"]
[EventDate "2024.02.18"]
[EventType "swiss"]
[EventCountry "ENG"]
[SourceTitle "playchess.com"]
[Source "ChessBase"]
[SourceQuality "1"]
[TimeControl "5400+30"]

{[%evp 14,58,49,75,71,66,58,58,66,61,66,82,75,81,81,27,24,0,0,0,38,-104,-103,-347,-333,-579,-583,-802,-761,-1212,-881,-1424,-665,-658,-540,-504,-541,-548,-524,-541,-541,-519,-455,-552,-544,-29995,-29996]} 1. e4 {[%emt 0:01:06]} c5 {[%emt 0:00:10]} 2. Nc3 {[%emt 0:01:15]} Nc6 {[%emt 0:00:21]} 3. Bb5 {[%emt 0:00:07]} Nd4 {[%emt 0:00:26]} 4. Nf3 {[%emt 0:00:45]} g6 {[%emt 0:00:38]} 5. Bc4 {[%emt 0:01:10]} Bg7 {[%emt 0:00:18]} 6. Nxd4 {[%emt 0:00:51]} cxd4 {[%emt 0:00:18]} 7. Qf3 {[%emt 0:00:26]} e6 {[%emt 0:00:57]} 8. Nb5 {[%emt 1:28:50] [#] Hoping for Nd6+.} d5 {[%emt 0:00:20]} 9. exd5 {[%emt 0:00:00]} a6 {[%emt 0:00:39]} 10. dxe6 $1 {[%emt 0:00:00]} fxe6 {[%emt 0:00:44] White is slightly better.} 11. Na3 {[%emt 0:00:00]} Nf6 {[%emt 0:00:24]} 12. O-O {[%emt 0:00:00]} O-O {[%emt 0:00:23]} 13. d3 {[%emt 0:00:00]} Nd5 {[%emt 0:01:22]} 14. Qg3 {[%emt 0:00:00]} (14. Qd1 $16) 14... Rf5 $11 {[%emt 0:01:19]} 15. Re1 {[%emt 0:00:00]} b5 {[%emt 0:04:13]} 16. Bb3 {[%emt 0:00:00]} Ra7 {[%emt 0:13:59]} 17. Qb8 {[%emt 0:00:00] [#]} (17. Nb1 $14 {stays ahead.}) 17... Rb7 $1 $40 {[%emt 0:05:04][%mdl 128] Black has strong attack.} 18. Qa8 {[%emt 0:00:00] This move loses the game for White.} (18. Qg3 $17) 18... Be5 $19 {[%emt 0:21:15]} (18... Nc7 19. Bxe6+ (19. Rxe6 $2 Kh8 $19) 19... Nxe6 20. Rxe6 $17) 19. f4 $2 {[%emt 0:00:00]} (19. Qxa6 Bxh2+ 20. Kh1 Qh4) (19. Rxe5 Rxe5 20. Bd2) 19... Nc7 {[%emt 0:03:28]} (19... Nxf4 $2 {loses.} 20. Rxe5 $18 (20. Qxa6 $2 {is the wrong capture.} Rbf7 $19) (20. Qxa6 Qh4 $19)) 20. Bxe6+ {[%emt 0:00:00]} Nxe6 {[%emt 0:00:23]} 21. Qxa6 {[%emt 0:00:00]} Nxf4 {[%emt 0:04:16]} 22. Rxe5 {[%emt 0:00:00]} Rxe5 {[%emt 0:00:31]} (22... Nh3+ $142 23. gxh3 Rxe5) 23. Bxf4 {[%emt 0:00:00]} Rf7 {[%emt 0:00:27]} 24. Qxc8 {[%emt 0:00:00]} Qxc8 {[%emt 0:00:12]} 25. Bxe5 {[%emt 0:00:00]} Qc5 {[%emt 0:01:10]} 26. Bg3 {[%emt 0:00:00]} Qb4 {[%emt 0:02:21]} 27. Rb1 {[%emt 0:00:00]} Re7 {[%emt 0:01:06]} 28. Kf1 {[%emt 0:00:00]} Qd2 {[%emt 0:03:04] ( -> ...Qe3)} 29. Be1 {[%emt 0:00:00]} Rf7+ {[%emt 0:02:30] Weighted Error Value: White=1.34/Black=0.37.  Loses game:     	White=1     	---        Mistake:       	White=3     	---        Inaccurate:     	White=3     	Black=1      OK:         	White=8     	Black=8      Best:        	---       	Black=3      Strong:       	White=1     	Black=1} 0-1

[Event "2nd Cambridge Open 2024"]
[Site "Cambridge"]
[Date "2024.02.23"]
[Round "7.14"]
[White "Ward, Ieuan C"]
[Black "Golubovic, Boris"]
[Result "1/2-1/2"]
[ECO "B22"]
[WhiteElo "2028"]
[BlackElo "2342"]
[Annotator "TA"]
[PlyCount "51"]
[EventDate "2024.02.18"]
[EventType "swiss"]
[EventCountry "ENG"]
[SourceTitle "playchess.com"]
[Source "ChessBase"]
[SourceQuality "1"]
[TimeControl "5400+30"]

{[%evp 19,51,33,98,104,97,97,105,104,98,66,67,30,33,29,31,30,43,45,41,50,56,52,48,60,53,17,21,18,25,22,14,0,18,0]} 1. e4 {[%emt 0:00:03]} c5 {[%emt 0:04:52]} 2. Nf3 {[%emt 0:00:59]} a6 {[%emt 0:03:56]} 3. c3 {[%emt 0:01:36]} d5 {[%emt 0:02:38]} 4. exd5 {[%emt 0:00:15]} Qxd5 {[%emt 0:00:08]} 5. d4 {[%emt 0:00:16]} e6 {[%emt 0:00:17]} 6. Be2 {[%emt 0:04:17]} Nf6 {[%emt 0:01:06]} 7. O-O {[%emt 0:00:46]} Be7 {[%emt 0:07:57]} 8. Be3 {[%emt 0:06:11]} Nbd7 {[%emt 0:04:07]} 9. c4 {[%emt 0:05:52]} Qd6 {[%emt 0:01:00]} 10. Nc3 {[%emt 0:00:09]} O-O {[%emt 0:01:43]} ({Better is} 10... Ng4 $14) 11. dxc5 $16 {[%emt 0:05:43]} Qxd1 {[%emt 0:11:19]} 12. Rfxd1 {[%emt 0:00:13]} (12. Raxd1 Nxc5 13. h3 Ncd7) 12... Bxc5 {[%emt 0:03:16]} 13. Bxc5 {[%emt 0:00:38] White is better.} Nxc5 {[%emt 0:00:06]} 14. Ne5 {[%emt 0:19:11]} Ncd7 {[%emt 0:05:21]} 15. Nxd7 {[%emt 0:04:15]} Bxd7 {[%emt 0:01:06]} 16. Bf3 {[%emt 0:14:17]} Rab8 {[%emt 0:05:22]} 17. Ne4 {[%emt 0:04:53] [#] And now Nxf6+ would win.} Nxe4 {[%emt 0:13:55][%cal Bf6e4,Be4c5,Bc5d3,Bd3e5][%mdl 32]} 18. Rxd7 {[%emt 0:09:36]} Nc5 {[%emt 0:00:28]} 19. Rc7 {[%emt 0:00:49]} b6 {[%emt 0:00:05]} 20. b4 {[%emt 0:01:19]} Nd3 {[%emt 0:00:30]} 21. a3 {[%emt 0:00:35]} a5 {[%emt 0:05:56]} 22. Rd1 {[%emt 0:06:16]} Ne5 {[%emt 0:00:45]} 23. Be2 {[%emt 0:00:23]} axb4 {[%emt 0:26:07]} 24. axb4 {[%emt 0:13:58]} Rfc8 {[%emt 0:00:00]} 25. Rxc8+ {[%emt 0:00:00]} Rxc8 {[%emt 0:00:00]} 26. Rd6 {[%emt 0:00:00] Weighted Error Value: White=0.09 (flawless) /Black=0.07 (flawless) .  Inaccurate:     	White=3     	---        OK:         	White=6     	Black=8      Best:        	White=1     	---} 1/2-1/2

[Event "2nd Cambridge Open 2024"]
[Site "Cambridge"]
[Date "2024.02.23"]
[Round "7.15"]
[White "Rushbrooke, Remy"]
[Black "Pozzari, Simone"]
[Result "1/2-1/2"]
[ECO "A37"]
[WhiteElo "2049"]
[BlackElo "2282"]
[Annotator "TA"]
[PlyCount "67"]
[EventDate "2024.02.18"]
[EventType "swiss"]
[EventCountry "ENG"]
[SourceTitle "playchess.com"]
[Source "ChessBase"]
[SourceQuality "1"]
[TimeControl "5400+30"]

{[%evp 12,67,29,0,2,-13,0,4,22,-14,-10,-5,-15,-5,0,-1,0,-68,-55,-69,-76,-83,-99,-156,-152,-160,-124,-143,-126,-127,-130,-136,-48,-126,-110,-156,-94,-174,-36,-45,0,0,0,0,0,0,0,0,0,0,0,0,0,0,0,0,0,0]} 1. Nf3 {[%emt 0:00:13]} c5 {[%emt 0:01:21]} 2. g3 {[%emt 0:00:07]} Nc6 {[%emt 0:00:06]} 3. c4 {[%emt 0:00:27]} e5 {[%emt 0:00:21]} 4. Nc3 {[%emt 0:00:22]} g6 {[%emt 0:01:02]} 5. Bg2 {[%emt 0:00:10]} Bg7 {[%emt 0:00:06]} 6. d3 {[%emt 0:00:03]} Nge7 {[%emt 0:00:12]} 7. Nd2 {[%emt 0:00:24]} d6 {[%emt 0:00:18]} 8. Nf1 {[%emt 0:00:05]} Be6 {[%emt 0:04:22]} 9. Ne3 {[%emt 0:00:10]} Qd7 {[%emt 0:00:20]} 10. a3 {[%emt 0:18:02]} Bh3 {[%emt 0:05:43]} 11. O-O {[%emt 0:12:10]} Bxg2 {[%emt 0:07:18]} 12. Kxg2 {[%emt 0:01:00]} f5 {[%emt 0:13:26]} 13. Ned5 {[%emt 0:05:19]} O-O {[%emt 0:01:50]} 14. Bg5 {[%emt 0:12:16]} (14. Qa4 $11) 14... Nxd5 $15 {[%emt 0:02:15]} 15. cxd5 {[%emt 0:00:22]} Nd4 {[%emt 0:04:59]} 16. e3 {[%emt 0:04:02]} Nb5 {[%emt 0:16:16]} 17. Qa4 {[%emt 0:00:48]} (17. Nxb5 $142 Qxb5 18. e4 (18. Be7 $2 Rf7 $19)) 17... a6 $17 {[%emt 0:03:13] Droht stark ...h6.} 18. Qh4 {[%emt 0:00:06]} Rf7 {[%emt 0:02:54][%cal Oe5e4]} 19. Bh6 {[%emt 0:19:01]} Bxh6 {[%emt 0:03:48]} 20. Qxh6 {[%emt 0:00:02]} Nxc3 {[%emt 0:02:27]} 21. bxc3 {[%emt 0:00:06] [#]} f4 {[%emt 0:00:21]} 22. Rab1 {[%emt 0:06:09]} (22. exf4 $15 exf4 23. Rae1) 22... Raf8 {[%emt 0:03:31]} 23. e4 {[%emt 0:04:03]} (23. exf4 $142 exf4 24. c4) 23... Qa4 {[%emt 0:05:17]} (23... c4 $142 24. dxc4 Qc8) 24. Rb6 {[%emt 0:02:21] [#]} (24. gxf4 $17 {war nötig.} Qc2 (24... Qxa3 25. fxe5 $11) (24... exf4 25. Qh3 $15) (24... Rxf4 25. Rxb7 R8f7 26. Rxf7 $14) 25. f5) 24... Qc2 {[%emt 0:04:41]} (24... Qxa3 25. Rfb1 fxg3 (25... Qxc3 $2 26. Rxb7 Qd2 27. Kh3 $18) 26. Rxb7 Rxf2+ 27. Kxg3 R8f3+ (27... Qxc3 28. Qxh7#) 28. Kg4 Rf4+ (28... Qxc3 29. Qg7#) 29. Kh3 R4f3+ (29... Qxc3 30. Qg7#) (29... R2f3+ 30. Kg2 $11) 30. Kg4 Rf4+ (30... Qxc3 31. Qg7#) 31. Kh3 R2f3+ (31... Qxc3 32. Qg7#) 32. Kg2 Qa2+ (32... Qxc3 33. Qg7#) 33. R1b2 Rf2+ 34. Kh1 Qa1+ (34... Rxb2 35. Qg7#) 35. Rb1 Rf1+ (35... Qxc3 36. Qg7#) 36. Kg2 R4f2+ (36... Rxb1 37. Qg7#) 37. Kh3 Rf3+ (37... Rxb1 38. Qg7#) 38. Kg2 R1f2+ (38... Rxb1 39. Qg7#) (38... Qa2+ 39. R1b2 $11) 39. Kh1 Rf1+ (39... Qxc3 40. Qg7#) 40. Kg2 Qa2+ (40... Rxb1 41. Qg7#) 41. R1b2 R3f2+ (41... R1f2+ 42. Kg1 $11) 42. Kh3 Rf3+ (42... Rxb2 43. Qg7#) 43. Kh4 Rf4+ 44. Kh3 R1f3+ 45. Kg2 Rf2+ 46. Kg3 R2f3+ 47. Kg2 $11) ({Vorzuziehen ist} 24... c4 $1 $19 {[%cal Rc4d3]} 25. dxc4 Qxc4) 25. Rxd6 $15 {[%emt 0:02:28]} fxg3 {[%emt 0:00:49][%cal Rf7f2]} 26. Rxg6+ $1 {[%emt 0:00:07] Die Stellung ist ausgeglichen.} hxg6 {[%emt 0:00:24]} 27. Qxg6+ {[%emt 0:00:03]} Rg7 {[%emt 0:00:11][%cal Rf8f2]} 28. Qe6+ {[%emt 0:00:05]} Rff7 {[%emt 0:00:20][%cal Rg3f2]} 29. Qc8+ {[%emt 0:00:03]} Rf8 {[%emt 0:05:56]} (29... Kh7 $5 30. Qh3+ $8 (30. hxg3 $2 {verliert.} Rxg3+ 31. Kxg3 Qxd3+ 32. Kg2 Rg7+ 33. Kh2 Qxf1 $19) 30... Kg8 31. Qc8+ Kh7 32. Qh3+ (32. hxg3 $2 {zu gefräßig.} Rxg3+ 33. Kxg3 Qxd3+ 34. Kg2 Rg7+ 35. Kh2 Qxf1 $19) 32... Kg6 (32... Kg8 33. Qc8+ $11) 33. Qg4+ Kf6 (33... Kh7 34. Qh3+ $11) 34. Qe6+ Kg5 35. hxg3 Qxc3 $11 (35... Qxd3 36. Qxe5+ Kg6 37. Qe6+ Rf6 38. Qe8+ Rgf7 39. Qg8+ Rg7 40. Qe8+ Kh7 41. Rh1+ Rh6 42. Rxh6+ Kxh6 43. Qe6+ Rg6 44. Qe5 $11)) 30. Qe6+ {[%emt 0:00:05]} Kh7 {[%emt 0:05:16][%cal Rf8f2]} 31. Qh3+ {[%emt 0:00:08]} Kg6 {[%emt 0:00:04][%cal Rf8f2]} (31... Kg8 $5 32. Qe6+ $8 $11) 32. Qg4+ {[%emt 0:03:47]} Kh7 {[%emt 0:03:27][%cal Rf8f2]} (32... Kh6 $5 33. Qh4+ $8 Kg6 34. Qg4+ Kh7 35. Qh3+ Kg8 36. Qe6+ $11) 33. Qh3+ {[%emt 0:00:04]} Kg8 {[%emt 0:00:03][%cal Rf8f2]} 34. Qe6+ $1 {[%emt 0:01:07] Weiß willigt fröhlich ins Remis ein.   Gewichteter Fehlerwert: Weiß=0.17 (sehr präzise) /Schwarz=0.16 (sehr präzise) .  Fehler:       	Weiß=5     	Schwarz=3     Ungenau:       	Weiß=1     	Schwarz=1     OK:         	Weiß=8     	Schwarz=9     Bester:       	Weiß=4     	Schwarz=2     Stark:        	Weiß=2     	---} 1/2-1/2

[Event "2nd Cambridge Open 2024"]
[Site "Cambridge"]
[Date "2024.02.23"]
[Round "7.16"]
[White "Martyn, Rafe"]
[Black "Golubovic, Erik"]
[Result "1/2-1/2"]
[ECO "B52"]
[WhiteElo "2206"]
[BlackElo "2025"]
[Annotator "RC"]
[PlyCount "99"]
[EventDate "2024.02.18"]
[EventType "swiss"]
[EventCountry "ENG"]
[SourceTitle "playchess.com"]
[Source "ChessBase"]
[SourceQuality "1"]
[TimeControl "5400+30"]

1. e4 {[%emt 0:00:08]} c5 {[%emt 0:00:15]} 2. Nf3 {[%emt 0:00:07]} d6 {[%emt 0:00:03]} 3. Bb5+ {[%emt 0:00:06]} Bd7 {[%emt 0:00:06]} 4. Bxd7+ {[%emt 0:00:21]} Qxd7 {[%emt 0:00:05]} 5. O-O {[%emt 0:00:08]} Nc6 {[%emt 0:00:16]} 6. c3 {[%emt 0:00:12]} d5 {[%emt 0:00:13]} 7. d3 {[%emt 0:03:01]} e6 {[%emt 0:18:36]} 8. Qe2 {[%emt 0:04:33]} Rd8 {[%emt 0:02:09]} 9. Na3 {[%emt 0:02:02]} Nge7 {[%emt 0:03:08]} 10. h4 {[%emt 0:04:47]} a6 {[%emt 0:09:12]} 11. h5 {[%emt 0:02:02]} dxe4 {[%emt 0:02:25]} 12. dxe4 {[%emt 0:00:09]} Qd3 {[%emt 0:00:36]} 13. Qxd3 {[%emt 0:00:41]} Rxd3 {[%emt 0:00:01]} 14. Nc4 {[%emt 0:00:08]} Nc8 {[%emt 0:03:15]} 15. a4 {[%emt 0:11:38]} Be7 {[%emt 0:03:40]} 16. Ra3 {[%emt 0:00:22]} f6 {[%emt 0:01:55]} 17. Be3 {[%emt 0:07:54]} Kf7 {[%emt 0:04:47]} 18. a5 {[%emt 0:00:20]} Rhd8 {[%emt 0:01:06]} 19. Raa1 {[%emt 0:00:20]} R8d7 {[%emt 0:07:50]} 20. Nfd2 {[%emt 0:05:09]} g6 {[%emt 0:06:20]} 21. hxg6+ {[%emt 0:00:12]} hxg6 {[%emt 0:00:09]} 22. Nb3 {[%emt 0:03:55]} f5 {[%emt 0:04:42]} 23. exf5 {[%emt 0:05:11]} exf5 {[%emt 0:00:57]} 24. Nxc5 {[%emt 0:03:37]} Bxc5 {[%emt 0:00:15]} 25. Bxc5 {[%emt 0:00:02]} R7d5 {[%emt 0:01:23]} 26. Be3 {[%emt 0:00:04]} Nd6 {[%emt 0:01:29]} 27. Nxd6+ {[%emt 0:00:43]} Rxd6 {[%emt 0:00:01]} 28. Rfc1 {[%emt 0:01:07]} Rd7 {[%emt 0:05:42]} 29. b4 {[%emt 0:04:08]} Kf6 {[%emt 0:02:57]} 30. Bc5 {[%emt 0:02:04]} g5 {[%emt 0:01:04]} 31. c4 {[%emt 0:00:57]} Rb3 {[%emt 0:00:42]} 32. Rab1 {[%emt 0:04:39]} Rdd3 {[%emt 0:05:28]} 33. Rxb3 {[%emt 0:00:40]} Rxb3 {[%emt 0:00:01]} 34. Rd1 {[%emt 0:00:14]} f4 {[%emt 0:13:00]} 35. Rd7 {[%emt 0:03:11]} g4 {[%emt 0:01:28]} 36. Rxb7 {[%emt 0:01:25]} g3 {[%emt 0:00:16]} 37. fxg3 {[%emt 0:01:45]} fxg3 {[%emt 0:00:26]} 38. Kf1 {[%emt 0:00:07]} Kf5 {[%emt 0:00:23]} 39. Rb6 {[%emt 0:05:25]} Ne5 {[%emt 0:00:12]} 40. Rxa6 {[%emt 0:00:11]} Nd3 {[%emt 0:03:04]} 41. Bd6 {[%emt 0:02:11]} Ke4 {[%emt 0:00:30]} 42. Bxg3 {[%emt 0:00:59]} Rb1+ {[%emt 0:00:11]} 43. Ke2 {[%emt 0:00:05]} Rb2+ {[%emt 0:00:08]} 44. Kd1 {[%emt 0:00:14]} Rxg2 {[%emt 0:00:53]} 45. Be1 {[%emt 0:00:33]} Nb2+ {[%emt 0:00:17]} 46. Kc1 {[%emt 0:00:05]} Nd3+ {[%emt 0:00:35]} 47. Kb1 {[%emt 0:00:23]} Kd4 {[%emt 0:00:35]} 48. Rd6+ {[%emt 0:17:00]} Kxc4 {[%emt 0:00:09]} 49. Rxd3 {[%emt 0:00:04]} Kxd3 {[%emt 0:00:04]} 50. Bh4 {[%emt 0:00:10]} 1/2-1/2

[Event "2nd Cambridge Open 2024"]
[Site "Cambridge"]
[Date "2024.02.23"]
[Round "7.17"]
[White "Sowray, Peter J"]
[Black "Zhang, Junyi"]
[Result "1-0"]
[ECO "A13"]
[WhiteElo "2169"]
[BlackElo "1655"]
[Annotator "RC"]
[PlyCount "127"]
[EventDate "2024.02.18"]
[EventType "swiss"]
[EventCountry "ENG"]
[SourceTitle "playchess.com"]
[Source "ChessBase"]
[SourceQuality "1"]
[TimeControl "5400+30"]

1. c4 {[%emt 0:00:05]} Nf6 {[%emt 0:00:37]} 2. Nf3 {[%emt 0:00:10]} e6 {[%emt 0:00:09]} 3. g3 {[%emt 0:00:06]} d5 {[%emt 0:00:49]} 4. Bg2 {[%emt 0:00:10]} dxc4 {[%emt 0:03:28]} 5. O-O {[%emt 0:00:31]} c5 {[%emt 0:00:24]} 6. Na3 {[%emt 0:00:56]} Nc6 {[%emt 0:00:19]} 7. Nxc4 {[%emt 0:00:34]} Be7 {[%emt 0:00:09]} 8. b3 {[%emt 0:02:54]} O-O {[%emt 0:02:31]} 9. Bb2 {[%emt 0:00:36]} Bd7 {[%emt 0:01:23]} 10. d4 {[%emt 0:05:37]} cxd4 {[%emt 0:00:50]} 11. Nxd4 {[%emt 0:00:54]} Nxd4 {[%emt 0:05:00]} 12. Qxd4 {[%emt 0:04:51]} Bc6 {[%emt 0:10:20]} 13. Bxc6 {[%emt 0:02:29]} bxc6 {[%emt 0:02:12]} 14. Rfd1 {[%emt 0:10:36]} Qc7 {[%emt 0:05:21]} 15. Qe5 {[%emt 0:06:06]} Qxe5 {[%emt 0:02:10]} 16. Nxe5 {[%emt 0:00:10]} Rfc8 {[%emt 0:03:00]} 17. Rac1 {[%emt 0:01:40]} c5 {[%emt 0:01:49]} 18. Rc4 {[%emt 0:06:43]} Nd5 {[%emt 0:02:50]} 19. Rdc1 {[%emt 0:02:20]} Rc7 {[%emt 0:05:59]} 20. Ba3 {[%emt 0:05:29]} Nb6 {[%emt 0:01:30]} 21. R4c2 {[%emt 0:01:03]} Rac8 {[%emt 0:03:22]} 22. Nd3 {[%emt 0:03:13]} a5 {[%emt 0:04:19]} 23. Nb2 {[%emt 0:07:11]} Nd5 {[%emt 0:04:38]} 24. Kf1 {[%emt 0:02:24]} Bg5 {[%emt 0:01:48]} 25. Rd1 {[%emt 0:00:23]} Nb4 {[%emt 0:00:50]} 26. Bxb4 {[%emt 0:00:13]} cxb4 {[%emt 0:00:29]} 27. Rxc7 {[%emt 0:02:45]} Rxc7 {[%emt 0:00:07]} 28. Nd3 {[%emt 0:02:25]} Bf6 {[%emt 0:02:32]} 29. Rc1 {[%emt 0:01:26]} Bc3 {[%emt 0:01:31]} 30. Nb2 {[%emt 0:02:19]} Be5 {[%emt 0:05:54]} 31. Rxc7 {[%emt 0:10:26]} Bxc7 {[%emt 0:00:11]} 32. e4 {[%emt 0:00:05]} Kf8 {[%emt 0:00:58]} 33. Ke2 {[%emt 0:00:05]} Ke7 {[%emt 0:00:04]} 34. Kd3 {[%emt 0:00:14]} Kd6 {[%emt 0:00:13]} 35. Kc4 {[%emt 0:00:43]} Kc6 {[%emt 0:30:14]} 36. Nd3 {[%emt 0:00:41]} e5 {[%emt 0:00:00]} 37. f3 {[%emt 0:02:17]} Bd6 {[%emt 0:00:00]} 38. h3 {[%emt 0:02:57]} f6 {[%emt 0:00:00]} 39. g4 {[%emt 0:00:56]} g6 {[%emt 0:00:00]} 40. h4 {[%emt 0:03:06]} Be7 {[%emt 0:00:00]} 41. h5 {[%emt 0:03:55]} Bf8 {[%emt 0:00:00]} 42. f4 {[%emt 0:01:31]} Bd6 {[%emt 0:00:00]} 43. fxe5 {[%emt 0:00:46]} fxe5 {[%emt 0:00:00]} 44. hxg6 {[%emt 0:01:02]} hxg6 {[%emt 0:00:00]} 45. Ne1 {[%emt 0:00:09]} Be7 {[%emt 0:00:14]} 46. Nf3 {[%emt 0:00:34]} Bd6 {[%emt 0:00:39]} 47. Nh4 {[%emt 0:02:05]} g5 {[%emt 0:00:13]} 48. Nf3 {[%emt 0:00:02]} Be7 {[%emt 0:00:47]} 49. Nxe5+ {[%emt 0:00:18]} Kd6 {[%emt 0:00:03]} 50. Nf3 {[%emt 0:00:54]} Bd8 {[%emt 0:00:27]} 51. e5+ {[%emt 0:00:47]} Ke6 {[%emt 0:00:09]} 52. Kd4 {[%emt 0:00:19]} Bb6+ {[%emt 0:00:33]} 53. Ke4 {[%emt 0:00:10]} Bd8 {[%emt 0:00:07]} 54. Nd4+ {[%emt 0:00:25]} Kd7 {[%emt 0:00:10]} 55. Kf5 {[%emt 0:00:42]} Bb6 {[%emt 0:00:11]} 56. Nf3 {[%emt 0:00:55]} Be3 {[%emt 0:00:15]} 57. Nxg5 {[%emt 0:00:24]} Kc6 {[%emt 0:00:29]} 58. Nf3 {[%emt 0:00:11]} Kd5 {[%emt 0:00:06]} 59. e6 {[%emt 0:00:22]} Bc5 {[%emt 0:00:05]} 60. g5 {[%emt 0:00:17]} Bf8 {[%emt 0:00:09]} 61. g6 {[%emt 0:00:18]} Kd6 {[%emt 0:00:08]} 62. Kf6 {[%emt 0:00:15]} Bh6 {[%emt 0:00:08]} 63. e7 {[%emt 0:00:21]} Kd7 {[%emt 0:00:04]} 64. Kf7 {[%emt 0:00:08]} 1-0